bitfinex/quotes_SOLUSD_20220307
["timestamp","ask_amount","ask_price","bid_price","bid_amount"]
[1646683620485,6.0,80.729,80.661,0.25]
[1646683620888,6.0,80.734,80.661,0.25]
[1646683621191,6.0,80.74,80.661,0.25]
[1646683621391,6.195,80.739,80.661,0.25]
[1646683621589,6.0,80.738,80.671,37.83834925]
[1646683621788,7.76743277,80.752,80.68,135.33]
[1646683622007,1.57243277,80.752,80.681,0.25]
[1646683622186,6.194,80.762,80.681,3.08613526]
[1646683622387,1.57243277,80.77,80.682,0.13539012]
[1646683622586,6.192,80.769,80.69,18.5856]
[1646683622787,7.76443277,80.775,80.7,14.43]
[1646683622988,6.192,80.775,80.701,0.25]
[1646683623189,7.76443277,80.776,80.701,0.25]
[1646683623388,6.192,80.776,80.702,2.83613526]
[1646683623589,6.192,80.783,80.703,0.39812384]
[1646683623788,112.2,80.799,80.703,0.39812384]
[1646683623987,112.2,80.799,80.711,120.9]
[1646683624187,112.2,80.799,80.72,135.33]
[1646683624386,6.191,80.807,80.73,135.33]
[1646683624590,6.19,80.832,80.731,42.46758741]
[1646683624791,6.19,80.832,80.732,6.0]
[1646683624988,6.189,80.836,80.733,0.25]
[1646683625193,7.76143277,80.836,80.734,6.189]
[1646683625389,1.57243277,80.835,80.735,6.25]
[1646683625588,6.189,80.834,80.736,6.189]
[1646683625790,6.189,80.834,80.75,14.43]
[1646683625989,6.189,80.821,80.751,38.15853144]
[1646683626390,6.189,80.821,80.751,37.90853144]
[1646683626590,126.7894082,80.836,80.75,14.43]
[1646683626789,2.83613526,80.82,80.732,24.8084]
[1646683626994,6.25,80.819,80.731,6.189]
[1646683627189,4.75690608,80.818,80.731,6.189]
[1646683627389,12.44,80.817,80.73,14.43]
[1646683627592,0.20953763,80.816,80.73,14.43]
[1646683627790,4.78444412,80.816,80.73,14.43]
[1646683627989,4.29814709,80.815,80.73,14.43]
[1646683628189,6.19,80.814,80.73,14.43]
[1646683628794,2.83613526,80.815,80.73,14.43]
[1646683628991,6.0,80.814,80.73,33.0099]
[1646683629190,6.0,80.814,80.732,44.94159427]
[1646683629391,6.0,80.836,80.732,44.74946959]
[1646683629596,5.16972362,80.835,80.732,44.74946959]
[1646683629791,6.189,80.821,80.733,0.25]
[1646683629990,6.0,80.82,80.732,44.74946959]
[1646683630292,6.0,80.82,80.74,18.5788]
[1646683630490,6.0,80.82,80.75,14.43]
[1646683630792,4.68438988,80.831,80.751,41.05950416]
[1646683630990,12.189,80.83,80.75,14.43]
[1646683631191,0.30535837,80.818,80.72,6.71]
[1646683631394,126.73233705,80.816,80.72,6.71]
[1646683631590,0.31593194,80.813,80.72,6.71]
[1646683631789,0.31593194,80.811,80.72,6.71]
[1646683631991,0.31593194,80.809,80.721,40.61919642]
[1646683632290,18.5917,80.8,80.721,40.61919642]
[1646683632490,12.12910121,80.799,80.721,40.61919642]
[1646683632691,9.08613526,80.799,80.721,40.61919642]
[1646683632891,2.83613526,80.798,80.721,40.61919642]
[1646683633094,18.5861,80.79,80.721,40.61919642]
[1646683633299,6.25,80.789,80.721,40.61919642]
[1646683633595,9.08613526,80.789,80.721,40.61919642]
[1646683633796,6.191,80.788,80.721,40.61919642]
[1646683634098,18.5871,80.78,80.72,6.71]
[1646683634296,12.441,80.779,80.72,6.71]
[1646683635809,18.5889,80.77,80.72,6.71]
[1646683636004,0.31202409,80.768,80.72,6.71]
[1646683636202,0.31202409,80.766,80.72,6.71]
[1646683636799,6.192,80.765,80.72,6.71]
[1646683637019,6.25,80.764,80.72,41.98135238]
[1646683637220,6.25,80.764,80.72,6.71]
[1646683637422,6.0,80.764,80.72,6.71]
[1646683637620,6.0,80.775,80.72,6.71]
[1646683638120,2.83613526,80.775,80.72,6.71]
[1646683638321,12.192,80.774,80.72,6.71]
[1646683638522,4.59402961,80.773,80.72,6.71]
[1646683638721,120.9,80.769,80.72,6.71]
[1646683638921,120.9,80.767,80.72,6.71]
[1646683639125,120.9,80.765,80.72,6.71]
[1646683639322,5.32288598,80.763,80.72,6.71]
[1646683639524,8.58590003,80.719,80.67,14.43]
[1646683639722,6.25,80.718,80.68,18.5937]
[1646683640124,6.25,80.718,80.661,49.0987]
[1646683640524,6.25,80.718,80.662,47.6820534]
[1646683640725,6.25,80.718,80.661,49.0987]
[1646683642825,6.25,80.718,80.66,18.5984]
[1646683643226,6.25,80.718,80.661,0.25]
[1646683643428,6.25,80.718,80.67,18.5953]
[1646683643626,6.25,80.718,80.671,38.66583588]
[1646683644828,6.25,80.718,80.68,18.5939]
[1646683645029,6.25,80.718,80.681,0.25]
[1646683645228,6.0,80.718,80.672,0.25]
[1646683645829,6.0,80.718,80.691,39.31734501]
[1646683646429,0.25,80.717,80.672,0.25]
[1646683646629,0.25,80.717,80.652,0.25]
[1646683646830,0.25,80.717,80.66,18.597]
[1646683647027,0.25,80.717,80.661,0.25]
[1646683647428,0.25,80.717,80.66,18.597]
[1646683647628,0.25,80.717,80.647,6.196]
[1646683647828,18.6022,80.71,80.647,6.196]
[1646683648028,6.25,80.709,80.638,6.197]
[1646683648229,6.25,80.708,80.638,6.197]
[1646683648429,0.25,80.717,80.639,42.98073992]
[1646683648629,0.25,80.717,80.64,127.097]
[1646683648831,0.25,80.717,80.65,18.6011]
[1646683649029,0.25,80.717,80.652,39.35306611]
[1646683649230,0.25,80.717,80.653,0.25]
[1646683649635,6.0,80.718,80.653,0.25]
[1646683649833,6.0,80.718,80.66,18.5975]
[1646683650034,6.0,80.718,80.662,0.15805382]
[1646683650332,8.58590003,80.719,80.664,120.9]
[1646683650532,8.58590003,80.719,80.666,120.9]
[1646683650832,8.58590003,80.719,80.681,43.43071472]
[1646683651135,8.58590003,80.719,80.69,33.0134]
[1646683651337,3.26590003,80.719,80.691,133.345]
[1646683651542,3.26590003,80.719,80.691,136.18113526]
[1646683651936,3.26590003,80.719,80.7,18.5841]
[1646683652136,3.26590003,80.719,80.701,44.37617153]
[1646683652335,3.26590003,80.719,80.702,6.195]
[1646683652534,3e-08,80.719,80.703,0.25]
[1646683652737,3e-08,80.719,80.704,6.194]
[1646683652936,3e-08,80.719,80.701,6.194]
[1646683653536,3e-08,80.719,80.7,33.0141]
[1646683653737,3e-08,80.719,80.7,14.43]
[1646683654237,3e-08,80.719,80.692,46.335]
[1646683655638,3e-08,80.719,80.671,6.195]
[1646683655839,3e-08,80.719,80.67,14.43]
[1646683656239,3e-08,80.719,80.69,18.5906]
[1646683656641,3e-08,80.719,80.69,33.0206]
[1646683656840,3e-08,80.719,80.691,6.445]
[1646683657046,1.57243277,80.782,80.693,120.9]
[1646683657241,1.57243277,80.794,80.731,120.9]
[1646683657442,1.57243277,80.804,80.732,0.79667277]
[1646683657642,1.57243277,80.804,80.734,120.9]
[1646683657841,1.57243277,80.806,80.735,0.79667277]
[1646683658041,1.57243277,80.809,80.736,127.09]
[1646683658242,6.25,80.808,80.741,120.9]
[1646683658442,6.25,80.808,80.76,18.5718]
[1646683658643,0.25,80.808,80.761,47.70938107]
[1646683658843,1.57243277,80.814,80.762,120.9]
[1646683659042,1.57243277,80.814,80.763,0.79667277]
[1646683659243,1.57243277,80.817,80.763,0.79667277]
[1646683659442,1.57243277,80.825,80.763,0.79667277]
[1646683659646,1.57243277,80.826,80.763,0.79667277]
[1646683659848,1.57243277,80.825,80.771,120.9]
[1646683660043,127.14100089,80.864,80.763,8.69667277]
[1646683660044,1.57243277,80.834,80.781,120.9]
[1646683660245,1.57243277,80.851,80.791,120.9]
[1646683660443,1.57243277,80.851,80.79,14.43]
[1646683660444,2.12858147,80.858,80.793,120.9]
[1646683660644,1.57243277,80.857,80.795,120.9]
[1646683660844,0.5561487,80.858,80.801,120.9]
[1646683661046,0.5561487,80.858,80.81,18.56]
[1646683661345,0.5561487,80.858,80.801,120.9]
[1646683661346,0.5561487,80.858,80.811,44.3982939]
[1646683661747,1.57243277,80.867,80.811,44.1482939]
[1646683662148,1.57243277,80.868,80.811,43.60162113]
[1646683662350,6.0,80.867,80.811,43.60162113]
[1646683662746,6.0,80.867,80.8,76.2965]
[1646683662947,6.0,80.867,80.81,18.5633]
[1646683663345,1.57243277,80.869,80.81,18.5633]
[1646683663645,6.0,80.868,80.791,24.9694]
[1646683663847,7.57243277,80.868,80.8,18.5659]
[1646683664046,8.83613526,80.868,80.8,18.5659]
[1646683664247,1.57243277,80.865,80.8,18.5659]
[1646683664450,7.82243277,80.864,80.8,18.5659]
[1646683664652,6.0,80.864,80.8,18.5659]
[1646683664850,0.25,80.863,80.8,18.5659]
[1646683665049,0.25,80.863,80.801,38.6350669]
[1646683665449,0.25,80.863,80.792,6.184]
[1646683665651,2.83613526,80.862,80.791,31.1554]
[1646683665849,6.25,80.861,80.791,31.1554]
[1646683666255,0.25,80.861,80.791,31.1554]
[1646683666453,18.568,80.86,80.792,34.20196766]
[1646683666651,12.436,80.859,80.792,34.20196766]
[1646683667453,12.436,80.859,80.791,24.9694]
[1646683667657,18.57,80.85,80.77,14.43]
[1646683667856,12.73561145,80.849,80.74,61.3567]
[1646683668057,4.64731964,80.848,80.74,61.3567]
[1646683668256,4.93856707,80.846,80.74,61.3567]
[1646683668460,12.438,80.845,80.741,43.17559983]
[1646683668660,15.27413526,80.845,80.741,43.17559983]
[1646683668870,30.10028915,80.844,80.741,43.17559983]
[1646683669059,12.438,80.843,80.75,18.576]
[1646683669259,15.27413526,80.843,80.751,6.438]
[1646683669459,2.83613526,80.842,80.751,6.438]
[1646683669664,12.438,80.841,80.742,6.188]
[1646683669868,120.9,80.84,80.742,6.188]
[1646683670063,6.25,80.839,80.742,6.188]
[1646683670263,18.5746,80.83,80.77,18.5723]
[1646683670465,12.438,80.829,80.771,38.41064099]
[1646683672176,12.438,80.829,80.78,18.5716]
[1646683672177,6.25,80.829,80.78,18.5716]
[1646683672377,0.25,80.829,80.78,18.5716]
[1646683672575,0.25,80.832,80.78,18.5716]
[1646683672975,6.0,80.834,80.78,18.5716]
[1646683673177,0.92520177,80.835,80.78,18.5716]
[1646683674475,0.92520177,80.835,80.77,18.5737]
[1646683674878,6.187,80.834,80.77,18.5737]
[1646683675077,126.9,80.833,80.75,76.3391]
[1646683675275,126.9,80.833,80.714,77.2013]
[1646683675276,120.9,80.829,80.72,14.43]
[1646683675478,0.37066394,80.826,80.735,40.69339551]
[1646683675677,139.4869,80.81,80.715,24.9186]
[1646683675876,7.76143277,80.825,80.715,24.9186]
[1646683675877,5.45883015,80.807,80.715,24.9186]
[1646683676079,0.37066394,80.804,80.715,24.9186]
[1646683676377,0.37066394,80.791,80.715,24.9186]
[1646683676581,6.62066394,80.791,80.715,24.9186]
[1646683676880,0.37066394,80.789,80.715,24.9186]
[1646683677080,0.37066394,80.789,80.71,18.5877]
[1646683677081,0.37066394,80.787,80.71,18.5877]
[1646683677280,0.37066394,80.784,80.691,23.5407]
[1646683677485,0.37066394,80.782,80.691,23.5407]
[1646683677682,0.37066394,80.78,80.691,23.5407]
[1646683677880,0.37066394,80.778,80.691,23.5407]
[1646683678082,139.4919,80.76,80.691,23.5407]
[1646683678281,0.37066394,80.758,80.691,23.5407]
[1646683678681,9.02813526,80.757,80.691,23.5407]
[1646683678885,6.25,80.756,80.691,23.5407]
[1646683679082,6.192,80.755,80.691,23.5407]
[1646683679282,6.25,80.754,80.691,23.5407]
[1646683679482,127.094,80.753,80.691,23.5407]
[1646683679683,127.15,80.752,80.681,24.9482]
[1646683679881,6.194,80.751,80.681,24.9482]
[1646683680087,24.845,80.75,80.681,24.9482]
[1646683680284,120.9,80.744,80.65,14.43]
[1646683680485,0.27275566,80.741,80.63,14.43]
[1646683680684,5.29751965,80.739,80.631,22.9583]
[1646683680882,120.9,80.737,80.631,41.7427]
[1646683681088,120.9,80.735,80.631,41.7427]
[1646683681287,120.9,80.729,80.631,22.9583]
[1646683681490,0.10953115,80.726,80.631,22.9583]
[1646683681687,100.0,80.719,80.631,22.9583]
[1646683681885,12.447,80.718,80.631,22.9583]
[1646683682085,126.28754776,80.717,80.631,22.9583]
[1646683682284,120.9,80.715,80.632,34.81042459]
[1646683682486,120.9,80.713,80.632,34.81042459]
[1646683682687,12.447,80.712,80.632,34.81042459]
[1646683682886,15.28313526,80.712,80.632,34.81042459]
[1646683683085,18.6048,80.71,80.632,34.81042459]
[1646683683286,4.85863201,80.708,80.632,34.81042459]
[1646683683486,6.25,80.707,80.632,34.81042459]
[1646683683687,6.198,80.706,80.632,34.81042459]
[1646683683892,120.9,80.704,80.631,22.9583]
[1646683684090,6.39959415,80.703,80.611,24.5227]
[1646683684289,120.9,80.699,80.611,24.5227]
[1646683684488,120.9,80.697,80.611,24.5227]
[1646683684690,120.9,80.695,80.589,18.9254]
[1646683684894,120.9,80.693,80.59,48.24378109]
[1646683685089,120.9,80.691,80.59,48.24378109]
[1646683685292,4.77814005,80.688,80.59,48.24378109]
[1646683685491,4.51919984,80.679,80.59,66.85728109]
[1646683685690,6.25,80.678,80.591,0.25]
[1646683685890,6.2,80.677,80.591,0.25]
[1646683686107,120.9,80.675,80.59,48.24378109]
[1646683686294,133.35,80.674,80.571,46.8539]
[1646683686493,18.6139,80.67,80.571,46.8539]
[1646683686692,17.09389029,80.669,80.571,46.8539]
[1646683686892,19.93002555,80.669,80.571,46.8539]
[1646683687294,100.0,80.667,80.572,0.25]
[1646683687493,12.45,80.666,80.572,48.58048]
[1646683687693,120.9,80.665,80.572,48.58048]
[1646683687898,120.9,80.659,80.571,46.8539]
[1646683688094,200.0,80.59,80.571,46.8539]
[1646683688302,0.25,80.589,80.54,18.2612]
[1646683688496,0.25,80.589,80.53,14.43]
[1646683688796,0.25,80.589,80.53,33.3718]
[1646683688994,0.25,80.589,80.531,38.76097286]
[1646683689396,0.25,80.589,80.516,23.18882702]
[1646683689597,6.25,80.589,80.504,23.18882702]
[1646683689996,6.25,80.589,80.51,18.6311]
[1646683690195,6.207,80.588,80.51,18.6311]
[1646683690399,6.25,80.587,80.511,42.76242644]
[1646683691097,0.25,80.587,80.511,42.76242644]
[1646683691297,0.25,80.587,80.512,0.25]
[1646683691497,0.25,80.588,80.512,0.25]
[1646683691700,0.25,80.588,80.52,18.6283]
[1646683691908,200.0,80.59,80.521,6.25]
[1646683692097,200.0,80.59,80.522,0.37881428]
[1646683692298,14.43,80.66,80.525,120.9]
[1646683692499,6.204,80.659,80.54,14.43]
[1646683692698,6.203,80.662,80.55,14.43]
[1646683692902,6.203,80.662,80.58,18.6144]
[1646683693100,6.203,80.662,80.581,41.95218972]
[1646683693299,6.203,80.662,80.581,0.25]
[1646683693500,6.203,80.662,80.582,3.44817375]
[1646683693701,6.203,80.662,80.583,0.25]
[1646683693901,6.203,80.662,80.584,0.61203849]
[1646683694100,6.203,80.662,80.584,3.44817375]
[1646683694301,6.0,80.661,80.585,0.25]
[1646683694502,6.2,80.66,80.586,0.61203849]
[1646683694701,6.0,80.659,80.586,5.68683672]
[1646683694903,6.2,80.683,80.587,0.25]
[1646683695105,6.2,80.688,80.6,14.43]
[1646683695304,6.2,80.715,80.63,18.5966]
[1646683695511,6.2,80.715,80.631,41.1086067]
[1646683695903,6.197,80.716,80.632,2.83613526]
[1646683696104,6.197,80.727,80.633,0.25]
[1646683696311,6.0,80.716,80.633,6.25]
[1646683696506,6.197,80.715,80.634,2.83613526]
[1646683696709,6.0,80.726,80.651,40.76990391]
[1646683696905,0.25,80.725,80.652,0.25]
[1646683697311,6.196,80.724,80.652,0.25]
[1646683697509,6.25,80.723,80.652,0.25]
[1646683697707,6.196,80.722,80.652,0.25]
[1646683697907,6.25,80.721,80.634,2.83613526]
[1646683698111,126.15504492,80.719,80.623,2.83613526]
[1646683698408,0.76057413,80.716,80.61,14.43]
[1646683698613,6.25,80.718,80.61,14.43]
[1646683698808,0.25,80.718,80.62,14.43]
[1646683699012,0.25,80.718,80.622,47.04449077]
[1646683699211,0.25,80.718,80.63,18.6035]
[1646683699509,6.447,80.729,80.631,6.0]
[1646683699709,6.0,80.728,80.632,0.25]
[1646683699910,0.25,80.727,80.632,0.25]
[1646683700109,6.197,80.726,80.632,3.08613526]
[1646683700313,4.84774809,80.703,80.632,0.25]
[1646683700513,6.74584316,80.702,80.623,0.25]
[1646683700910,9.58197842,80.702,80.623,0.25]
[1646683701110,2.83613526,80.701,80.623,0.25]
[1646683701315,6.74584316,80.7,80.62,18.6059]
[1646683701513,6.74584316,80.7,73.604,0.03812]
[1646683701514,120.9,80.699,80.59,14.43]
[1646683701816,0.90986893,80.696,80.579,70.8962]
[1646683702011,0.90986893,80.696,80.55,16.66477082]
[1646683702012,120.9,80.689,80.561,2.83613526]
[1646683702211,72.61,80.69,80.561,2.83613526]
[1646683702212,72.61,80.674,80.562,39.25239708]
[1646683702411,5.87102661,80.658,80.57,18.6179]
[1646683702612,6.0,80.657,80.57,18.6179]
[1646683702811,1.17619978,80.656,80.571,6.202]
[1646683703014,6.0,80.655,80.571,6.202]
[1646683703215,0.77428399,80.654,80.563,6.202]
[1646683703412,0.77428399,80.654,80.564,6.0]
[1646683703413,0.25,80.654,80.564,6.0]
[1646683703711,2.83613526,80.653,80.565,6.452]
[1646683703912,6.25,80.652,80.59,18.6131]
[1646683704113,6.25,80.652,80.591,0.25]
[1646683704414,120.9,80.651,80.591,0.25]
[1646683704630,6.25,80.65,80.591,0.25]
[1646683704829,24.8679,80.65,80.565,6.2]
[1646683705029,120.9,80.648,80.562,6.202]
[1646683705229,5.28978077,80.645,80.54,76.4952]
[1646683705430,0.60299886,80.642,80.556,44.44090725]
[1646683705629,0.60299886,80.64,80.541,6.0]
[1646683705834,4.92619831,80.628,80.537,29.6503]
[1646683706032,0.63204035,80.625,80.54,18.6242]
[1646683706231,127.104,80.624,80.537,23.4463]
[1646683706430,120.9,80.622,80.537,23.4463]
[1646683706631,133.355,80.621,80.538,43.08198759]
[1646683706834,6.25,80.62,80.538,43.08198759]
[1646683707131,6.205,80.619,80.55,18.6232]
[1646683707331,6.25,80.618,80.551,43.58065625]
[1646683707731,0.25,80.618,80.551,43.58065625]
[1646683708341,3.08613526,80.618,80.551,43.58065625]
[1646683708532,6.0,80.617,80.551,43.58065625]
[1646683708735,6.454,80.616,80.56,18.6208]
[1646683708932,6.0,80.615,80.561,0.25]
[1646683709133,6.204,80.635,80.561,0.25]
[1646683709334,6.0,80.634,80.562,9.03913526]
[1646683709533,6.0,80.634,80.563,0.25]
[1646683709734,6.0,80.661,80.57,18.6175]
[1646683710033,6.202,80.66,80.571,0.25]
[1646683710233,6.0,80.659,80.571,0.25]
[1646683710435,6.202,80.658,80.571,0.25]
[1646683710636,6.0,80.659,80.571,0.25]
[1646683710637,120.9,80.656,80.571,0.25]
[1646683710840,0.51251107,80.652,80.58,18.6149]
[1646683711043,120.9,80.651,80.581,0.25]
[1646683711241,6.54336231,80.65,80.581,0.25]
[1646683711437,120.9,80.647,80.564,6.202]
[1646683711642,0.68233628,80.637,80.541,6.203]
[1646683711836,0.68233628,80.603,80.526,6.203]
[1646683712036,6.68233628,80.603,80.526,6.203]
[1646683712237,11.63676387,80.603,80.512,22.6992]
[1646683712439,0.70130043,80.6,80.512,22.6992]
[1646683712643,0.84992525,80.598,80.513,6.206]
[1646683712838,127.106,80.597,80.513,6.206]
[1646683713039,100.0,80.582,80.513,6.206]
[1646683713239,127.15,80.581,80.513,6.206]
[1646683714139,18.6361,80.58,80.513,6.206]
[1646683714342,6.25,80.579,80.514,34.89399675]
[1646683714740,120.9,80.578,80.514,34.89399675]
[1646683714941,6.0,80.577,80.515,120.9]
[1646683715240,6.0,80.58,80.516,9.08613526]
[1646683715440,6.0,80.58,80.52,18.6303]
[1646683715641,6.0,80.603,80.521,6.25]
[1646683716245,0.25,80.602,80.521,6.25]
[1646683716441,0.25,80.602,80.522,120.9]
[1646683716644,0.25,80.602,80.523,6.25]
[1646683716843,0.25,80.602,80.523,9.08613526]
[1646683717044,12.206,80.621,80.54,18.6241]
[1646683717246,12.206,80.621,80.542,120.9]
[1646683717443,6.204,80.641,80.544,120.9]
[1646683717643,6.204,80.651,80.546,120.9]
[1646683717844,6.204,80.651,80.561,120.9]
[1646683718044,100.0,80.659,80.562,175.14073416]
[1646683718244,6.202,80.658,80.562,175.14073416]
[1646683718444,100.0,80.659,80.58,18.6117]
[1646683718650,6.2,80.658,80.581,38.30986763]
[1646683718843,6.0,80.657,80.581,38.30986763]
[1646683719045,6.202,80.656,80.581,38.30986763]
[1646683719245,126.9,80.655,80.581,38.30986763]
[1646683719445,6.452,80.654,80.581,0.25]
[1646683719650,200.0,80.59,80.581,0.25]
[1646683719846,200.0,80.59,80.571,6.25]
[1646683720545,200.0,80.59,80.571,0.25]
[1646683720746,200.0,80.59,80.57,0.25]
[1646683721148,200.0,80.59,80.551,6.0]
[1646683721346,200.0,80.59,80.54,14.43]
[1646683721746,200.0,80.59,80.541,6.0]
[1646683722045,200.0,80.59,80.542,36.92259784]
[1646683722246,0.25,80.589,80.542,36.92259784]
[1646683722847,0.25,80.589,80.543,6.25]
[1646683723046,0.25,80.589,80.543,6.0]
[1646683723250,0.25,80.589,80.54,14.43]
[1646683723652,0.25,80.589,80.52,14.43]
[1646683723850,0.25,80.589,80.521,6.0]
[1646683724051,0.25,80.589,80.522,120.9]
[1646683724250,200.0,80.59,80.531,120.9]
[1646683724451,200.0,80.59,80.53,18.6259]
[1646683724452,200.0,80.59,80.533,120.9]
[1646683724650,200.0,80.59,80.535,120.9]
[1646683724852,200.0,80.59,80.537,120.9]
[1646683725053,200.0,80.59,80.539,120.9]
[1646683725252,200.0,80.59,80.54,6.25]
[1646683725451,200.0,80.59,80.54,9.08613526]
[1646683725653,200.0,80.59,80.541,2.83613526]
[1646683725854,200.0,80.59,80.542,6.25]
[1646683726058,200.0,80.59,80.542,127.15]
[1646683726259,200.0,80.59,80.543,2.83613526]
[1646683726457,200.0,80.59,80.544,6.25]
[1646683726853,200.0,80.59,80.544,9.08613526]
[1646683727058,200.0,80.59,80.551,120.9]
[1646683727255,200.0,80.59,80.552,158.72087463]
[1646683727454,200.0,80.59,80.552,37.82087463]
[1646683728255,200.0,80.59,80.56,18.6181]
[1646683728455,200.0,80.59,80.561,0.25]
[1646683728655,200.0,80.59,80.552,37.82087463]
[1646683729056,200.0,80.59,80.552,158.72087463]
[1646683729458,200.0,80.59,80.561,120.9]
[1646683729656,185.0,80.59,80.562,121.15]
[1646683729856,6.205,80.672,80.563,6.0]
[1646683730056,6.202,80.673,80.566,36.62187425]
[1646683730256,5.40092429,80.673,80.57,14.43]
[1646683730557,18.6108,80.67,80.58,18.6135]
[1646683730777,6.2,80.669,80.581,42.43458828]
[1646683731156,6.0,80.668,80.582,120.9]
[1646683731357,6.0,80.668,80.584,120.9]
[1646683731563,6.0,80.677,80.585,6.25]
[1646683731755,6.0,80.677,80.59,18.6127]
[1646683731958,6.0,80.681,80.591,6.25]
[1646683733357,18.8585,80.68,80.611,34.75519978]
[1646683733559,6.0,80.679,80.612,0.25]
[1646683733858,0.25,80.678,80.612,0.25]
[1646683734461,0.25,80.678,80.611,34.75519978]
[1646683735261,6.2,80.677,80.611,34.75519978]
[1646683735460,6.25,80.676,80.611,34.75519978]
[1646683735661,6.2,80.675,80.611,34.75519978]
[1646683735861,6.25,80.674,80.612,0.25]
[1646683736063,0.59821687,80.673,80.612,0.25]
[1646683736260,6.25,80.674,80.612,0.25]
[1646683736461,0.25,80.674,80.612,0.25]
[1646683736663,18.6106,80.67,80.6,18.6106]
[1646683736861,0.81155565,80.668,80.611,0.25]
[1646683737067,121.71155565,80.668,80.611,0.25]
[1646683737260,120.9,80.666,80.611,0.25]
[1646683737460,13.26155565,80.665,80.611,0.25]
[1646683737662,6.2,80.665,80.611,0.25]
[1646683737863,120.9,80.663,80.594,22.7741]
[1646683738062,13.07594073,80.662,80.594,22.7741]
[1646683738280,15.91207599,80.662,80.594,22.7741]
[1646683738464,15.91207599,80.662,80.578,43.15991056]
[1646683738663,2.83613526,80.661,80.578,43.15991056]
[1646683738863,120.9,80.659,80.56,14.43]
[1646683739066,18.6183,80.64,80.57,18.6178]
[1646683739267,6.91053081,80.639,80.57,18.6178]
[1646683739866,6.25,80.639,80.571,38.41248878]
[1646683740064,0.25,80.639,80.59,18.6122]
[1646683740265,0.25,80.652,80.59,18.6122]
[1646683740467,6.0,80.668,80.591,120.9]
[1646683740764,6.0,80.682,80.592,127.15]
[1646683740968,18.6054,80.69,80.61,18.6038]
[1646683741265,18.6054,80.69,80.6,62.0125]
[1646683741266,6.0,80.689,80.611,42.42733207]
[1646683741667,6.0,80.689,80.612,120.9]
[1646683741866,6.0,80.689,80.613,0.25]
[1646683742067,12.199,80.708,80.621,120.9]
[1646683742263,12.199,80.708,80.622,0.25]
[1646683743067,6.0,80.708,80.622,0.25]
[1646683743263,0.25,80.707,80.64,18.5995]
[1646683743465,6.0,80.708,80.641,47.70957869]
[1646683743666,6.0,80.708,80.642,120.9]
[1646683743868,6.0,80.708,80.643,0.25]
[1646683744372,6.0,80.724,80.651,120.9]
[1646683744569,6.0,80.745,80.652,0.25]
[1646683744767,6.195,80.744,80.643,0.25]
[1646683744967,6.0,80.743,80.643,0.25]
[1646683745167,6.196,80.742,80.643,0.25]
[1646683745372,6.0,80.741,80.643,0.25]
[1646683745569,25.0415,80.74,80.671,40.47811714]